fUSD/lending_fUSD_20250806
["ID","MTS","AMOUNT","RATE_DAILY","PERIOD"]
[377559269,1754442657015,-1548.89,0.0003589,14]
[377559270,1754442657025,-400.0,0.0003589,14]
[377559271,1754442657034,-1700.4,0.0003589,14]
[377559272,1754442657043,-1335.25,0.0003589,14]
[377559273,1754442657053,-1795.56,0.0003589,14]
[377559274,1754442657062,-400.0,0.0003589,14]
[377559275,1754442657071,-400.0,0.0003589,14]
[377559276,1754442657080,-565.7,0.0003589,14]
[377559277,1754442657090,-400.0,0.0003589,14]
[377559278,1754442657099,-1441.51,0.0003589,14]
[377559279,1754442657108,-746.64,0.0003589,14]
[377559280,1754442657118,-1198.41,0.0003589,14]
[377559281,1754442657128,-400.0,0.0003589,14]
[377559282,1754442657139,-400.0,0.0003589,14]
[377559283,1754442657148,-400.38,0.0003589,14]
[377559284,1754442657157,-473.95,0.0003589,14]
[377559285,1754442657166,-400.0,0.0003589,14]
[377559286,1754442657175,-400.0,0.0003589,14]
[377559287,1754442657184,-705.48,0.0003589,14]
[377559288,1754442657193,-400.0,0.0003589,14]
[377559289,1754442657203,-400.0,0.0003589,14]
[377559290,1754442657213,-1109.3,0.0003589,14]
[377559291,1754442657223,-400.0,0.0003589,14]
[377559292,1754442657233,-400.0,0.0003589,14]
[377559293,1754442657242,-676.32,0.0003589,14]
[377559294,1754442657252,-435.15,0.0003589,14]
[377559295,1754442657262,-1083.01,0.0003589,14]
[377559296,1754442657271,-400.0,0.0003589,14]
[377559297,1754442657280,-400.0,0.0003589,14]
[377559298,1754442657290,-618.68,0.0003589,14]
[377559299,1754442657299,-400.0,0.0003589,14]
[377559300,1754442657308,-2053.3,0.0003589,14]
[377559301,1754442657317,-923.51,0.0003589,14]
[377559302,1754442657326,-556.6,0.0003589,14]
[377559303,1754442657335,-400.0,0.0003589,14]
[377559304,1754442657344,-1815.69,0.0003589,14]
[377559305,1754442657353,-400.0,0.0003589,14]
[377559306,1754442657362,-400.0,0.0003589,14]
[377559307,1754442657372,-400.0,0.0003589,14]
[377559308,1754442657382,-400.0,0.0003589,14]
[377559309,1754442657392,-713.06,0.0003589,14]
[377559310,1754442657405,-1040.29,0.0003589,14]
[377559311,1754442657416,-400.0,0.0003589,14]
[377559312,1754442657426,-400.0,0.0003589,14]
[377559313,1754442657436,-400.0,0.0003589,14]
[377559314,1754442657445,-400.0,0.0003589,5]
[377559315,1754442657455,-400.0,0.0003589,14]
[377559316,1754442657465,-400.0,0.0003589,14]
[377559317,1754442657475,-516.14,0.0003589,14]
[377559318,1754442657485,-400.0,0.0003589,14]
[377559319,1754442657495,-400.0,0.0003589,14]
[377559320,1754442657505,-400.0,0.0003589,14]
[377559321,1754442657514,-400.0,0.0003589,14]
[377559322,1754442657523,-400.0,0.0003589,14]
[377559323,1754442657532,-400.0,0.0003589,14]
[377559324,1754442657542,-400.0,0.0003589,14]
[377559325,1754442657551,-400.0,0.0003589,14]
[377559326,1754442657560,-1588.96,0.0003589,14]
[377559327,1754442657569,-400.0,0.0003589,14]
[377559328,1754442657578,-501.29,0.0003589,14]
[377559329,1754442657587,-400.0,0.0003589,14]
[377559330,1754442657596,-400.0,0.0003589,14]
[377559331,1754442657605,-304.15045111,0.0003589,14]
[377559332,1754442657614,-400.0,0.0003589,14]
[377559333,1754442657623,-1728.93,0.0003589,14]
[377559334,1754442657631,-400.0,0.0003589,14]
[377559335,1754442657640,-400.0,0.0003589,14]
[377559336,1754442657651,-721.83,0.0003589,14]
[377559337,1754442657660,-842.87,0.0003589,14]
[377559338,1754442657669,-400.0,0.0003589,14]
[377559339,1754442657678,-402.68269394,0.0003589,14]
[377559340,1754442657687,-1400.15,0.0003589,14]
[377559341,1754442657696,-2022.66,0.0003589,14]
[377559342,1754442657705,-400.0,0.0003589,14]
[377559343,1754442657714,-400.0,0.0003589,14]
[377559344,1754442657723,-400.0,0.0003589,14]
[377559345,1754442657732,-500.0,0.0003589,30]
[377559346,1754442657741,-1814.02,0.0003589,14]
[377559347,1754442657751,-400.0,0.0003589,14]
[377559348,1754442657760,-400.0,0.0003589,14]
[377559349,1754442657769,-1569.39,0.0003589,14]
[377559350,1754442657779,-699.33,0.0003589,14]
[377559351,1754442657788,-400.0,0.0003589,14]
[377559352,1754442657798,-1178.29,0.0003589,14]
[377559353,1754442657807,-400.0,0.0003589,14]
[377559354,1754442657816,-1387.5,0.0003589,14]
[377559355,1754442657827,-492.33,0.0003589,14]
[377559356,1754442657837,-400.0,0.0003589,14]
[377559357,1754442657846,-400.0,0.0003589,14]
[377559358,1754442657856,-1463.21,0.0003589,14]
[377559359,1754442657865,-544.52,0.0003589,14]
[377559360,1754442657874,-400.0,0.0003589,14]
[377559361,1754442657883,-503.4,0.0003589,14]
[377559362,1754442657894,-400.0,0.0003589,14]
[377559363,1754442657904,-400.1,0.0003589,14]
[377559364,1754442657913,-400.0,0.0003589,14]
[377559365,1754442657922,-1643.62,0.0003589,14]
[377559366,1754442657932,-1833.83,0.0003589,14]
[377559367,1754442657942,-847.42,0.0003589,14]
[377559368,1754442657952,-1450.05,0.0003589,14]
[377559369,1754442657961,-400.0,0.0003589,14]
[377559370,1754442657971,-483.54,0.0003589,14]
[377559371,1754442657980,-400.0,0.0003589,14]
[377559372,1754442657989,-400.0,0.0003589,14]
[377559373,1754442657998,-1132.33,0.0003589,14]
[377559374,1754442658007,-400.0,0.0003589,14]
[377559375,1754442658017,-1000.0,0.0003589,30]
[377559376,1754442658026,-400.0,0.0003589,14]
[377559377,1754442658036,-400.0,0.0003589,14]
[377559378,1754442658045,-404.42,0.0003589,14]
[377559379,1754442658054,-400.0,0.0003589,14]
[377559380,1754442658063,-400.0,0.0003589,14]
[377559381,1754442658073,-400.0,0.0003589,14]
[377559382,1754442658083,-1097.1,0.0003589,14]
[377559383,1754442658093,-400.0,0.0003589,14]
[377559384,1754442658103,-400.0,0.0003589,14]
[377559385,1754442658112,-2325.25,0.0003589,14]
[377559386,1754442658121,-400.0,0.0003589,14]
[377559387,1754442658131,-1903.94,0.0003589,14]
[377559388,1754442658140,-1533.11,0.0003589,14]
[377559389,1754442658150,-500.0,0.0003589,10]
[377559390,1754442658160,-660.51,0.0003589,14]
[377559391,1754442658169,-400.0,0.0003589,14]
[377559392,1754442658178,-450.03,0.0003589,14]
[377559393,1754442658187,-460.28,0.0003589,14]
[377559394,1754442658196,-400.0,0.0003589,14]
[377559395,1754442658205,-400.0,0.0003589,14]
[377559396,1754442658217,-400.0,0.0003589,14]
[377559397,1754442658226,-1254.32,0.0003589,14]
[377559398,1754442658235,-1717.8,0.0003589,14]
[377559399,1754442658244,-400.0,0.0003589,14]
[377559400,1754442658254,-541.04927157,0.0003589,14]
[377559401,1754442658264,-400.0,0.0003589,14]
[377559402,1754442658273,-400.0,0.0003589,14]
[377559403,1754442658282,-1428.48,0.0003589,14]
[377559404,1754442658293,-733.28,0.0003589,14]
[377559405,1754442658304,-400.0,0.0003589,14]
[377559406,1754442658313,-400.0,0.0003589,14]
[377559407,1754442658322,-400.0,0.0003589,14]
[377559408,1754442658331,-827.0,0.0003589,14]
[377559409,1754442658340,-400.0,0.0003589,14]
[377559410,1754442658349,-470.72,0.0003589,14]
[377559411,1754442658358,-400.0,0.0003589,14]
[377559412,1754442658367,-400.0,0.0003589,14]
[377559413,1754442658376,-424.41,0.0003589,14]
[377559414,1754442658386,-1695.19,0.0003589,14]
[377559415,1754442658395,-1633.57,0.0003589,14]
[377559416,1754442658405,-1386.71,0.0003589,14]
[377559417,1754442658414,-526.05,0.0003589,14]
[377559418,1754442658424,-400.0,0.0003589,14]
[377559419,1754442658433,-400.0,0.0003589,14]
[377559420,1754442658443,-1774.92,0.0003589,14]
[377559421,1754442658459,-400.0,0.0003589,14]
[377559422,1754442658468,-523.37,0.0003589,14]
[377559423,1754442658477,-1821.42,0.0003589,14]
[377559424,1754442658486,-400.0,0.0003589,14]
[377559425,1754442658496,-403.11,0.0003589,14]
[377559426,1754442658506,-400.0,0.0003589,14]
[377559427,1754442658516,-400.0,0.0003589,14]
[377559428,1754442658526,-537.16,0.0003589,14]
[377559429,1754442658537,-1326.6,0.0003589,14]
[377559430,1754442658546,-1845.51,0.0003589,14]
[377559431,1754442658555,-406.36,0.0003589,14]
[377559432,1754442658564,-400.0,0.0003589,14]
[377559433,1754442658574,-547.22,0.0003589,14]
[377559434,1754442658583,-902.18,0.0003589,14]
[377559435,1754442658592,-400.0,0.0003589,14]
[377559436,1754442658601,-400.0,0.0003589,14]
[377559437,1754442658610,-400.0,0.0003589,14]
[377559438,1754442658618,-1145.28,0.0003589,14]
[377559439,1754442658628,-400.0,0.0003589,14]
[377559440,1754442658637,-553.06,0.0003589,14]
[377559441,1754442658646,-400.0,0.0003589,14]
[377559442,1754442658656,-2832.17,0.0003589,14]
[377559443,1754442658665,-2180.85,0.0003589,14]
[377559444,1754442658674,-2243.29,0.0003589,14]
[377559445,1754442658683,-1098.87,0.0003589,14]
[377559446,1754442658693,-400.0,0.0003589,14]
[377559447,1754442658702,-400.0,0.0003589,14]
[377559448,1754442658711,-1583.64,0.0003589,14]
[377559449,1754442658721,-1529.8,0.0003589,14]
[377559450,1754442658730,-400.0,0.0003589,14]
[377559451,1754442658740,-400.0,0.0003589,14]
[377559452,1754442658749,-400.0,0.0003589,14]
[377559453,1754442658758,-1102.58,0.0003589,14]
[377559454,1754442658767,-400.0,0.0003589,14]
[377559455,1754442658777,-1658.45,0.0003589,14]
[377559456,1754442658788,-400.0,0.0003589,14]
[377559457,1754442658799,-977.09,0.0003589,14]
[377559458,1754442658810,-473.22,0.0003589,14]
[377559459,1754442658820,-1718.03,0.0003589,14]
[377559460,1754442658831,-400.0,0.0003589,14]
[377559461,1754442658841,-400.0,0.0003589,14]
[377559462,1754442658851,-258.49276215,0.0003589,10]
[377559463,1754442658860,-400.0,0.0003589,14]
[377559464,1754442658868,-1030.9,0.0003589,14]
[377559465,1754442658878,-400.0,0.0003589,14]
[377559466,1754442658887,-799.93,0.0003589,14]
[377559467,1754442658897,-400.0,0.0003589,14]
[377559468,1754442658907,-1782.82,0.0003589,14]
[377559469,1754442658917,-400.0,0.0003589,14]
[377559470,1754442658926,-400.0,0.0003589,14]
[377559471,1754442658937,-1638.95,0.0003589,14]
[377559472,1754442658946,-2528.78,0.0003589,2]
[377559473,1754442658955,-625.21,0.0003589,14]
[377559474,1754442658964,-400.0,0.0003589,14]
[377559475,1754442658973,-400.0,0.0003589,14]
[377559476,1754442658983,-400.0,0.0003589,14]
[377559477,1754442658992,-1493.49,0.0003589,14]
[377559478,1754442659001,-2036.4,0.0003589,14]
[377559479,1754442659010,-410.9,0.0003589,14]
[377559480,1754442659020,-400.0,0.0003589,14]
[377559481,1754442659029,-400.0,0.0003589,14]
[377559482,1754442659038,-400.0,0.0003589,14]
[377559483,1754442659047,-400.0,0.0003589,14]
[377559484,1754442659057,-400.0,0.0003589,14]
[377559485,1754442659066,-1210.7,0.0003589,14]
[377559486,1754442659075,-10006.13,0.0003589,14]
[377559487,1754442659085,-1629.9,0.0003589,14]
[377559488,1754442659094,-400.0,0.0003589,14]
[377559489,1754442659103,-1492.93,0.0003589,14]
[377559490,1754442659112,-1167.12,0.0003589,14]
[377559491,1754442659121,-539.61,0.0003589,14]
[377559492,1754442659130,-1588.35,0.0003589,14]
[377559493,1754442659139,-1152.25,0.0003589,14]
[377559494,1754442659149,-1739.77,0.0003589,14]
[377559495,1754442659158,-400.0,0.0003589,14]
[377559496,1754442659167,-400.0,0.0003589,14]
[377559497,1754442659176,-665.27,0.0003589,14]
[377559498,1754442659185,-400.0,0.0003589,14]
[377559499,1754442659195,-400.0,0.0003589,14]
[377559500,1754442659204,-1156.38,0.0003589,14]
[377559501,1754442659215,-400.0,0.0003589,14]
[377559502,1754442659225,-1235.39,0.0003589,14]
[377559503,1754442659234,-400.0,0.0003589,14]
[377559504,1754442659244,-400.0,0.0003589,14]
[377559505,1754442659255,-1042.08,0.0003589,14]
[377559506,1754442659268,-555.31,0.0003589,14]
[377559507,1754442659278,-1674.52,0.0003589,14]
[377559508,1754442659288,-1645.48,0.0003589,14]
[377559509,1754442659297,-400.0,0.0003589,14]
[377559510,1754442659308,-610.62,0.0003589,14]
[377559511,1754442659317,-771.19,0.0003589,14]
[377559512,1754442659333,-2345.36,0.0003589,14]
[377559513,1754442659343,-855.1,0.0003589,14]
[377559514,1754442659354,-400.0,0.0003589,14]
[377559515,1754442659363,-571.85,0.0003589,14]
[377559516,1754442659372,-901.39,0.0003589,14]
[377559517,1754442659382,-1738.31,0.0003589,14]
[377559518,1754442659392,-400.0,0.0003589,14]
[377559519,1754442659401,-2776.05,0.0003589,14]
[377559520,1754442659410,-640.36,0.0003589,14]
[377559521,1754442659420,-400.0,0.0003589,14]
[377559522,1754442659429,-421.1,0.0003589,14]
[377559523,1754442659439,-1250.35,0.0003589,14]
[377559524,1754442659448,-648.11,0.0003589,14]
[377559525,1754442659458,-648.31,0.0003589,14]
[377559526,1754442659467,-400.0,0.0003589,14]
[377559527,1754442659476,-400.0,0.0003589,14]
[377559528,1754442659486,-541.69,0.0003589,14]
[377559529,1754442659496,-329.88,0.0003589,120]
[377559530,1754442659506,-400.0,0.0003589,14]
[377559531,1754442659516,-481.1,0.0003589,14]
[377559532,1754442659526,-693.82,0.0003589,14]
[377559533,1754442659535,-400.0,0.0003589,14]
[377559534,1754442659544,-1143.9,0.0003589,14]
[377559535,1754442659553,-1843.83,0.0003589,14]
[377559536,1754442659563,-1216.09,0.0003589,14]
[377559537,1754442659572,-400.0,0.0003589,14]
[377559538,1754442659581,-748.15,0.0003589,14]
[377559539,1754442659591,-2563.26,0.0003589,14]
[377559540,1754442659600,-514.70057268,0.0003589,14]
[377559541,1754442659609,-929.85,0.0003589,14]
[377559542,1754442659620,-400.0,0.0003589,14]
[377559543,1754442659630,-960.91,0.0003589,14]
[377559544,1754442659640,-953.28,0.0003589,14]
[377559545,1754442659649,-1108.19,0.0003589,14]
[377559546,1754442659661,-1077.76,0.0003589,14]
[377559547,1754442659670,-579.13,0.0003589,14]
[377559548,1754442659679,-3361.78,0.0003589,14]
[377559549,1754442659688,-400.0,0.0003589,14]
[377559550,1754442659697,-418.72795914,0.0003589,14]
[377559551,1754442659706,-718.46,0.0003589,14]
[377559552,1754442659715,-451.54,0.0003589,14]
[377559553,1754442659724,-877.04,0.0003589,14]
[377559554,1754442659734,-536.36,0.0003589,14]
[377559555,1754442659743,-400.0,0.0003589,14]
[377559556,1754442659752,-663.47,0.0003589,14]
[377559557,1754442659762,-2656.71,0.0003589,14]
[377559558,1754442659772,-400.0,0.0003589,14]
[377559559,1754442659781,-759.76,0.0003589,14]
[377559560,1754442659790,-400.0,0.0003589,14]
[377559561,1754442659800,-1728.96,0.0003589,14]
[377559562,1754442659809,-400.0,0.0003589,14]
[377559563,1754442659818,-400.0,0.0003589,14]
[377559564,1754442659827,-400.0,0.0003589,14]
[377559565,1754442659837,-1511.99,0.0003589,14]
[377559566,1754442659846,-1017.31,0.0003589,14]
[377559567,1754442659855,-1815.4,0.0003589,14]
[377559568,1754442659864,-1422.48,0.0003589,14]
[377559569,1754442659873,-400.0,0.0003589,14]
[377559570,1754442659883,-1276.47,0.0003589,14]
[377559571,1754442659892,-400.0,0.0003589,14]
[377559572,1754442659902,-400.0,0.0003589,14]
[377559573,1754442659911,-854.48,0.0003589,14]
[377559574,1754442659920,-400.0,0.0003589,14]
[377559575,1754442659930,-1666.11,0.0003589,14]
[377559576,1754442659939,-400.0,0.0003589,14]
[377559577,1754442659950,-1981.27,0.0003589,14]
[377559578,1754442659959,-400.0,0.0003589,14]
[377559579,1754442659968,-400.0,0.0003589,14]
[377559580,1754442659977,-400.0,0.0003589,14]
[377559581,1754442659986,-400.0,0.0003589,14]
[377559582,1754442659995,-400.0,0.0003589,14]
[377559583,1754442660004,-917.59,0.0003589,14]
[377559584,1754442660013,-400.0,0.0003589,14]
[377559585,1754442660023,-1423.17,0.0003589,14]
[377559586,1754442660033,-400.0,0.0003589,14]
[377559587,1754442660042,-635.16,0.0003589,14]
[377559588,1754442660052,-400.0,0.0003589,14]
[377559589,1754442660062,-400.0,0.0003589,14]
[377559590,1754442660072,-1602.49,0.0003589,14]
[377559591,1754442660082,-400.0,0.0003589,14]
[377559592,1754442660092,-462.48,0.0003589,14]
[377559593,1754442660101,-400.0,0.0003589,14]
[377559594,1754442660111,-1993.92,0.0003589,14]
[377559595,1754442660120,-400.0,0.0003589,14]
[377559596,1754442660131,-400.0,0.0003589,14]
[377559597,1754442660140,-400.0,0.0003589,14]
[377559598,1754442660150,-1745.29,0.0003589,14]
[377559599,1754442660160,-400.0,0.0003589,7]
[377559600,1754442660170,-1505.87,0.0003589,14]
[377559601,1754442660181,-400.0,0.0003589,14]
[377559602,1754442660191,-714.94,0.0003589,14]
[377559603,1754442660200,-400.0,0.0003589,14]
[377559604,1754442660210,-400.0,0.0003589,14]
[377559605,1754442660224,-400.0,0.0003589,14]
[377559606,1754442660234,-400.0,0.0003589,14]
[377559607,1754442660244,-400.0,0.0003589,14]
[377559608,1754442660255,-1862.67,0.0003589,14]
[377559609,1754442660263,-1330.24,0.0003589,14]
[377559610,1754442660273,-1500.66,0.0003589,14]
[377559611,1754442660283,-400.0,0.0003589,14]
[377559612,1754442660293,-1806.35,0.0003589,14]
[377559613,1754442660303,-400.0,0.0003589,14]
[377559614,1754442660313,-400.0,0.0003589,14]
[377559615,1754442660323,-1681.57,0.0003589,14]
[377559616,1754442660332,-400.0,0.0003589,14]
[377559617,1754442660342,-1855.83,0.0003589,14]
[377559618,1754442660351,-400.0,0.0003589,14]
[377559619,1754442660360,-190.46368063,0.0003589,14]
[377559620,1754442660370,-939.15,0.0003589,14]
[377559621,1754442660379,-400.0,0.0003589,14]
[377559622,1754442660389,-400.0,0.0003589,14]
[377559623,1754442660398,-400.0,0.0003589,14]
[377559624,1754442660408,-1183.54,0.0003589,14]
[377559625,1754442660417,-1796.76,0.0003589,14]
[377559626,1754442660427,-433.49,0.0003589,14]
[377559627,1754442660436,-400.0,0.0003589,14]
[377559628,1754442660445,-540.41,0.0003589,14]
[377559629,1754442660455,-400.0,0.0003589,14]
[377559630,1754442660468,-426.54,0.0003589,14]
[377559631,1754442660478,-400.0,0.0003589,14]
[377559632,1754442660487,-400.0,0.0003589,14]
[377559633,1754442660497,-1268.78,0.0003589,14]
[377559634,1754442660508,-783.57,0.0003589,14]
[377559635,1754442660518,-947.41,0.0003589,14]
[377559636,1754442660528,-400.0,0.0003589,14]
[377559637,1754442660537,-1648.95,0.0003589,14]
[377559638,1754442660547,-400.0,0.0003589,14]
[377559639,1754442660556,-1722.77,0.0003589,14]
[377559640,1754442660565,-400.0,0.0003589,14]
[377559641,1754442660575,-1349.25,0.0003589,14]
[377559642,1754442660584,-400.0,0.0003589,14]
[377559643,1754442660594,-609.22,0.0003589,14]
[377559644,1754442660603,-460.65,0.0003589,14]
[377559645,1754442660612,-607.57,0.0003589,14]
[377559646,1754442660622,-1560.94,0.0003589,14]
[377559647,1754442660631,-1489.1,0.0003589,14]
[377559648,1754442660642,-400.0,0.0003589,14]
[377559649,1754442660651,-1643.92,0.0003589,14]
[377559650,1754442660660,-3508.69,0.0003589,14]
[377559651,1754442660669,-400.0,0.0003589,14]
[377559652,1754442660678,-1475.19,0.0003589,14]
[377559653,1754442660687,-3179.65,0.0003589,14]
[377559654,1754442660697,-1761.36,0.0003589,14]
[377559655,1754442660706,-1697.46,0.0003589,14]
[377559656,1754442660715,-403.44983249,0.0003589,14]
[377559657,1754442660725,-400.0,0.0003589,14]
[377559658,1754442660734,-400.0,0.0003589,14]
[377559659,1754442660743,-400.0,0.0003589,14]
[377559660,1754442660753,-1809.63,0.0003589,14]
[377559661,1754442660763,-400.0,0.0003589,14]
[377559662,1754442660773,-400.0,0.0003589,14]
[377559663,1754442660783,-400.0,0.0003589,14]
[377559664,1754442660792,-400.0,0.0003589,14]
[377559665,1754442660802,-996.45,0.0003589,14]
[377559666,1754442660812,-786.64,0.0003589,14]
[377559667,1754442660822,-1813.1,0.0003589,14]
[377559668,1754442660831,-1549.43,0.0003589,14]
[377559669,1754442660840,-978.82,0.0003589,14]
[377559670,1754442660850,-187.75651194,0.0003589,14]
[377559671,1754442660859,-435.61057447,0.0003589,14]
[377559672,1754442660869,-452.79,0.0003589,14]
[377559673,1754442660879,-1973.22,0.0003589,14]
[377559674,1754442660889,-1411.16,0.0003589,14]
[377559675,1754442660898,-400.0,0.0003589,14]
[377559676,1754442661042,-400.0,0.0003589,14]
[377559677,1754442661052,-400.0,0.0003589,14]
[377559678,1754442661061,-400.0,0.0003589,14]
[377559679,1754442661072,-1309.23,0.0003589,14]
[377559680,1754442661082,-1898.39,0.0003589,14]
[377559681,1754442661091,-1356.93,0.0003589,14]
[377559682,1754442661101,-400.0,0.0003589,14]
[377559683,1754442661111,-400.0,0.0003589,14]
[377559684,1754442661121,-400.0,0.0003589,14]
[377559685,1754442661130,-400.0,0.0003589,14]
[377559686,1754442661139,-1218.86,0.0003589,14]
[377559687,1754442661149,-517.04,0.0003589,14]
[377559688,1754442661160,-400.0,0.0003589,14]
[377559689,1754442661169,-400.0,0.0003589,14]
[377559690,1754442661178,-1686.02,0.0003589,14]
[377559691,1754442661188,-613.23,0.0003589,14]
[377559692,1754442661197,-400.0,0.0003589,14]
[377559693,1754442661206,-1577.44,0.0003589,14]
[377559694,1754442661220,-2936.53,0.0003589,14]
[377559695,1754442661229,-400.0,0.0003589,14]
[377559696,1754442661239,-400.0,0.0003589,14]
[377559697,1754442661248,-1064.45,0.0003589,14]
[377559698,1754442661260,-2278.06,0.0003589,14]
[377559699,1754442661272,-400.0,0.0003589,14]
[377559700,1754442661282,-400.0,0.0003589,14]
[377559701,1754442661292,-1099.07,0.0003589,14]
[377559702,1754442661303,-400.0,0.0003589,14]
[377559703,1754442661313,-400.0,0.0003589,14]
[377559704,1754442661322,-1262.49,0.0003589,14]
[377559705,1754442661333,-400.0,0.0003589,14]
[377559706,1754442661343,-400.0,0.0003589,14]
[377559707,1754442661353,-400.0,0.0003589,14]
[377559708,1754442661362,-1786.24,0.0003589,14]
[377559709,1754442661372,-1929.27,0.0003589,14]
[377559710,1754442661382,-881.4,0.0003589,14]
[377559711,1754442661393,-400.0,0.0003589,14]
[377559712,1754442661402,-400.0,0.0003589,14]
[377559713,1754442661413,-507.98,0.0003589,14]
[377559714,1754442661423,-1377.54,0.0003589,14]
[377559715,1754442661433,-458.1,0.0003589,14]
[377559716,1754442661443,-1207.69,0.0003589,14]
[377559717,1754442661453,-1137.9,0.0003589,14]
[377559718,1754442661463,-400.0,0.0003589,14]
[377559719,1754442661473,-997.78,0.0003589,14]
[377559720,1754442661482,-1750.37,0.0003589,14]
[377559721,1754442661492,-1730.65,0.0003589,14]
[377559722,1754442661502,-462.41215378,0.0003589,14]
[377559723,1754442661512,-1365.84,0.0003589,14]
[377559724,1754442661522,-2341.23,0.0003589,14]
[377559725,1754442661532,-400.0,0.0003589,14]
[377559726,1754442661541,-1000.56,0.0003589,14]
[377559727,1754442661551,-400.0,0.0003589,14]
[377559728,1754442661560,-400.0,0.0003589,14]
[377559729,1754442661570,-2067.81,0.0003589,14]
[377559730,1754442661579,-520.16,0.0003589,14]
[377559731,1754442661589,-1930.61,0.0003589,14]
[377559732,1754442661599,-3777.24,0.0003589,14]
[377559733,1754442661608,-400.0,0.0003589,14]
[377559734,1754442661618,-400.0,0.0003589,14]
[377559735,1754442661627,-1228.29,0.0003589,14]
[377559736,1754442661636,-400.0,0.0003589,14]
[377559737,1754442661646,-400.0,0.0003589,14]
[377559738,1754442661655,-400.0,0.0003589,14]
[377559739,1754442661665,-911.04,0.0003589,14]
[377559740,1754442661675,-1576.28,0.0003589,14]
[377559741,1754442661685,-950.59,0.0003589,14]
[377559742,1754442661694,-823.06,0.0003589,14]
[377559743,1754442661703,-1595.25,0.0003589,14]
[377559744,1754442661713,-1716.12,0.0003589,14]
[377559745,1754442661723,-978.13,0.0003589,14]
[377559746,1754442661733,-400.0,0.0003589,14]
[377559747,1754442661743,-500.0,0.0003589,14]
[377559748,1754442661752,-649.47,0.0003589,14]
[377559749,1754442661762,-400.0,0.0003589,14]
[377559750,1754442661771,-1326.1,0.0003589,14]
[377559751,1754442661781,-400.0,0.0003589,14]
[377559752,1754442661791,-400.0,0.0003589,14]
[377559753,1754442661801,-400.0,0.0003589,14]
[377559754,1754442661811,-400.0,0.0003589,14]
[377559755,1754442661819,-338.90797818,0.0003589,14]
[377559756,1754442661829,-1901.09,0.0003589,14]
[377559757,1754442661838,-651.8,0.0003589,14]
[377559758,1754442661847,-2522.71,0.0003589,14]
[377559759,1754442661856,-400.0,0.0003589,14]
[377559760,1754442661866,-995.31,0.0003589,14]
[377559761,1754442661875,-1954.85,0.0003589,14]
[377559762,1754442661885,-1221.21,0.0003589,14]
[377559763,1754442661894,-1654.29,0.0003589,14]
[377559764,1754442661904,-400.0,0.0003589,14]
[377559765,1754442661912,-400.0,0.0003589,14]
[377559766,1754442661922,-400.0,0.0003589,14]
[377559767,1754442661931,-400.0,0.0003589,14]
[377559768,1754442661941,-400.0,0.0003589,14]